[Event "*** Titled Tuesday Blitz"]
[Site "Chess.com"]
[Date "2020.12.29"]
[Round "7"]
[White "Savva09022009"]
[Black "PhoenixFire8"]
[Result "1-0"]
[WhiteElo "2621"]
[BlackElo "2446"]
[TimeControl "180+1"]
[EndTime "11:19:57 PST"]
[Termination "Savva09022009 won by checkmate"]

1. d4 {[%clk 0:03:00.9]} 1... g6 {[%clk 0:03:00]} 2. Nc3 {[%clk 0:03:00.8]} 2...
Bg7 {[%clk 0:02:59.7]} 3. Bf4 {[%clk 0:02:59.7]} 3... d6 {[%clk 0:02:56.2]} 4.
e4 {[%clk 0:02:58.7]} 4... Nd7 {[%clk 0:02:55.3]} 5. Nf3 {[%clk 0:02:54.9]} 5...
e5 {[%clk 0:02:42]} 6. dxe5 {[%clk 0:02:55.8]} 6... Nxe5 {[%clk 0:02:40.6]} 7.
Nxe5 {[%clk 0:02:53.7]} 7... Bxe5 {[%clk 0:02:40.2]} 8. Bxe5 {[%clk 0:02:52.7]}
8... dxe5 {[%clk 0:02:41.1]} 9. Qxd8+ {[%clk 0:02:51.4]} 9... Kxd8 {[%clk
0:02:41.8]} 10. Bc4 {[%clk 0:02:51.4]} 10... Be6 {[%clk 0:02:13.8]} 11. Bxe6
{[%clk 0:02:49]} 11... fxe6 {[%clk 0:02:14.7]} 12. Ke2 {[%clk 0:02:46.9]} 12...
c6 {[%clk 0:02:14]} 13. Ke3 {[%clk 0:02:45.9]} 13... Nf6 {[%clk 0:02:13.6]} 14.
f3 {[%clk 0:02:45.8]} 14... Ke7 {[%clk 0:02:13.8]} 15. Ne2 {[%clk 0:02:43.9]}
15... a5 {[%clk 0:02:11.8]} 16. Nc1 {[%clk 0:02:43.9]} 16... a4 {[%clk 0:02:09]}
17. Nd3 {[%clk 0:02:43.6]} 17... Nd7 {[%clk 0:02:09.7]} 18. a3 {[%clk
0:02:41.5]} 18... b5 {[%clk 0:02:08.6]} 19. b3 {[%clk 0:02:40.5]} 19... c5
{[%clk 0:02:03.8]} 20. Rhb1 {[%clk 0:02:36.4]} 20... Rhb8 {[%clk 0:01:59.7]} 21.
Nb2 {[%clk 0:02:29.5]} 21... Nb6 {[%clk 0:01:53]} 22. bxa4 {[%clk 0:02:16.4]}
22... Nxa4 {[%clk 0:01:52]} 23. Nd3 {[%clk 0:02:16.1]} 23... Kd6 {[%clk
0:01:24.2]} 24. Rd1 {[%clk 0:02:14.7]} 24... Nc3 {[%clk 0:01:22.5]} 25. Rd2
{[%clk 0:02:11.8]} 25... c4 {[%clk 0:01:21.1]} 26. Nf2+ {[%clk 0:01:50.9]} 26...
Kc5 {[%clk 0:01:08]} 27. Ng4 {[%clk 0:01:48.1]} 27... Rd8 {[%clk 0:01:02.5]} 28.
Rxd8 {[%clk 0:01:41.8]} 28... Rxd8 {[%clk 0:01:03.4]} 29. Nxe5 {[%clk 0:01:42]}
29... Nd1+ {[%clk 0:00:58.8]} 30. Ke2 {[%clk 0:01:30.6]} 30... Nc3+ {[%clk
0:00:58.9]} 31. Ke1 {[%clk 0:01:24.7]} 31... Rd6 {[%clk 0:00:50.5]} 32. g4
{[%clk 0:01:18.5]} 32... Kd4 {[%clk 0:00:48.3]} 33. Nf7 {[%clk 0:01:10.8]} 33...
Rd7 {[%clk 0:00:47.1]} 34. Ng5 {[%clk 0:01:11]} 34... Ke3 {[%clk 0:00:37]} 35.
Nxe6 {[%clk 0:01:04.6]} 35... Rd2 {[%clk 0:00:29.6]} 36. Kf1 {[%clk 0:00:54.8]}
36... Kxf3 {[%clk 0:00:18.8]} 37. e5 {[%clk 0:00:50.4]} 37... Rxh2 {[%clk
0:00:17.8]} 38. Kg1 {[%clk 0:00:47.5]} 38... Rg2+ {[%clk 0:00:17.2]} 39. Kh1
{[%clk 0:00:47.4]} 39... Rxg4 {[%clk 0:00:17.8]} 40. Rf1+ {[%clk 0:00:30]} 40...
Ke4 {[%clk 0:00:17.4]} 41. Re1+ {[%clk 0:00:29]} 41... Kf5 {[%clk 0:00:14.7]}
42. Ng7+ {[%clk 0:00:28.7]} 42... Kg5 {[%clk 0:00:12.6]} 43. e6 {[%clk
0:00:29.6]} 43... Rh4+ {[%clk 0:00:09.4]} 44. Kg2 {[%clk 0:00:28.9]} 44... Rg4+
{[%clk 0:00:10.1]} 45. Kh3 {[%clk 0:00:14.8]} 45... Rh4+ {[%clk 0:00:10.5]} 46.
Kg3 {[%clk 0:00:14]} 46... Rg4+ {[%clk 0:00:11.4]} 47. Kf3 {[%clk 0:00:13.8]}
47... Rf4+ {[%clk 0:00:11.6]} 48. Kg3 {[%clk 0:00:06.5]} 48... Ne4+ {[%clk
0:00:11.9]} 49. Kh3 {[%clk 0:00:05.6]} 49... Kf6 {[%clk 0:00:08.1]} 50. Ne8+
{[%clk 0:00:05.6]} 50... Kxe6 {[%clk 0:00:07.9]} 51. Nc7+ {[%clk 0:00:06.2]}
51... Kf5 {[%clk 0:00:08.1]} 52. Nxb5 {[%clk 0:00:07.1]} 52... Ng5+ {[%clk
0:00:08.1]} 53. Kg3 {[%clk 0:00:06.4]} 53... Rg4+ {[%clk 0:00:07.6]} 54. Kf2
{[%clk 0:00:06.9]} 54... Ne4+ {[%clk 0:00:07.7]} 55. Ke3 {[%clk 0:00:06.8]}
55... Rg3+ {[%clk 0:00:08.3]} 56. Kd4 {[%clk 0:00:07.2]} 56... c3 {[%clk
0:00:08.6]} 57. Rxe4 {[%clk 0:00:06.9]} 57... Rg2 {[%clk 0:00:06.8]} 58. Re5+
{[%clk 0:00:06.4]} 58... Kf6 {[%clk 0:00:06.6]} 59. Rc5 {[%clk 0:00:05.1]} 59...
Rxc2 {[%clk 0:00:07]} 60. Rxc3 {[%clk 0:00:06]} 60... Rd2+ {[%clk 0:00:06.7]}
61. Ke4 {[%clk 0:00:05.6]} 61... Rd8 {[%clk 0:00:07.6]} 62. Nd4 {[%clk
0:00:05.3]} 62... Kg5 {[%clk 0:00:08]} 63. a4 {[%clk 0:00:05.1]} 63... Kf6
{[%clk 0:00:08.8]} 64. Ra3 {[%clk 0:00:05.5]} 64... Re8+ {[%clk 0:00:09.4]} 65.
Kd3 {[%clk 0:00:05.5]} 65... Ra8 {[%clk 0:00:10.3]} 66. a5 {[%clk 0:00:06.4]}
66... Ke5 {[%clk 0:00:10.8]} 67. a6 {[%clk 0:00:06.9]} 67... Rd8 {[%clk
0:00:11.5]} 68. Ra4 {[%clk 0:00:07.5]} 68... Kd5 {[%clk 0:00:11.7]} 69. a7
{[%clk 0:00:07.7]} 69... Ra8 {[%clk 0:00:12.3]} 70. Kc3 {[%clk 0:00:07.4]} 70...
Kc5 {[%clk 0:00:12.8]} 71. Ne6+ {[%clk 0:00:07]} 71... Kb6 {[%clk 0:00:13.1]}
72. Rb4+ {[%clk 0:00:05.4]} 72... Kxa7 {[%clk 0:00:12.8]} 73. Kd4 {[%clk
0:00:05.8]} 73... Re8 {[%clk 0:00:12.4]} 74. Ke5 {[%clk 0:00:05.7]} 74... h5
{[%clk 0:00:12.3]} 75. Kf6 {[%clk 0:00:05.7]} 75... Rh8 {[%clk 0:00:10.8]} 76.
Kxg6 {[%clk 0:00:05.1]} 76... h4 {[%clk 0:00:11.4]} 77. Rb2 {[%clk 0:00:04.9]}
77... h3 {[%clk 0:00:11.5]} 78. Rh2 {[%clk 0:00:05.2]} 78... Kb6 {[%clk
0:00:11.3]} 79. Kf5 {[%clk 0:00:05.1]} 79... Kc6 {[%clk 0:00:11.6]} 80. Nf4
{[%clk 0:00:04.9]} 80... Kd6 {[%clk 0:00:11.7]} 81. Nxh3 {[%clk 0:00:05]} 81...
Ke7 {[%clk 0:00:11.4]} 82. Kg4 {[%clk 0:00:05.4]} 82... Kf6 {[%clk 0:00:11.6]}
83. Rf2+ {[%clk 0:00:05.4]} 83... Ke7 {[%clk 0:00:11.4]} 84. Ng5 {[%clk
0:00:05.3]} 84... Rg8 {[%clk 0:00:12]} 85. Re2+ {[%clk 0:00:05.6]} 85... Kd6
{[%clk 0:00:11.9]} 86. Kf5 {[%clk 0:00:05.5]} 86... Ra8 {[%clk 0:00:12.4]} 87.
Kf6 {[%clk 0:00:05.4]} 87... Rf8+ {[%clk 0:00:11.9]} 88. Nf7+ {[%clk 0:00:05.9]}
88... Kc5 {[%clk 0:00:12.6]} 89. Rd2 {[%clk 0:00:06]} 89... Ra8 {[%clk
0:00:13.1]} 90. Ke6 {[%clk 0:00:06.4]} 90... Ra6+ {[%clk 0:00:13.7]} 91. Ke5
{[%clk 0:00:06.9]} 91... Kc4 {[%clk 0:00:14.3]} 92. Nd6+ {[%clk 0:00:05.4]}
92... Kc3 {[%clk 0:00:14.2]} 93. Ne4+ {[%clk 0:00:06]} 93... Kc4 {[%clk
0:00:14]} 94. Rd4+ {[%clk 0:00:06.4]} 94... Kb5 {[%clk 0:00:12.8]} 95. Nc3+
{[%clk 0:00:06.5]} 95... Kc6 {[%clk 0:00:12.8]} 96. Rc4+ {[%clk 0:00:05.5]}
96... Kb7 {[%clk 0:00:13]} 97. Ne4 {[%clk 0:00:05.4]} 97... Ra5+ {[%clk
0:00:13.3]} 98. Kd6 {[%clk 0:00:05.6]} 98... Ra6+ {[%clk 0:00:14]} 99. Kd7
{[%clk 0:00:06]} 99... Ra1 {[%clk 0:00:14.5]} 100. Nd6+ {[%clk 0:00:06.2]}
100... Kb6 {[%clk 0:00:15.1]} 101. Rc6+ {[%clk 0:00:06.7]} 101... Ka5 {[%clk
0:00:15.2]} 102. Rc8 {[%clk 0:00:06.5]} 102... Rd1 {[%clk 0:00:13.9]} 103. Rb8
{[%clk 0:00:06.3]} 103... Rd3 {[%clk 0:00:13.2]} 104. Kc6 {[%clk 0:00:06.2]}
104... Rd1 {[%clk 0:00:12.5]} 105. Kc5 {[%clk 0:00:06]} 105... Ka6 {[%clk
0:00:11.1]} 106. Ra8# {[%clk 0:00:05.3]} 1-0

[Event "*** Titled Tuesday Blitz"]
[Site "Chess.com"]
[Date "2020.12.29"]
[Round "8"]
[White "nitpicker"]
[Black "MoreChessJulia"]
[Result "1-0"]
[WhiteElo "2257"]
[BlackElo "2103"]
[TimeControl "180+1"]
[EndTime "11:22:46 PST"]
[Termination "nitpicker won by resignation"]

1. d4 {[%clk 0:03:00.9]} 1... f5 {[%clk 0:02:55.7]} 2. c4 {[%clk 0:03:00.4]}
2... e6 {[%clk 0:02:52.5]} 3. Nf3 {[%clk 0:02:59.9]} 3... Nf6 {[%clk 0:02:51.3]}
4. Qc2 {[%clk 0:02:59.7]} 4... Bb4+ {[%clk 0:02:49.4]} 5. Nbd2 {[%clk
0:02:54.4]} 5... b6 {[%clk 0:02:48.4]} 6. a3 {[%clk 0:02:52.9]} 6... Be7 {[%clk
0:02:45.8]} 7. e4 {[%clk 0:02:46.9]} 7... fxe4 {[%clk 0:02:44.8]} 8. Nxe4 {[%clk
0:02:47.1]} 8... Bb7 {[%clk 0:02:44.1]} 9. Bd3 {[%clk 0:02:44.6]} 9... g6 {[%clk
0:02:16.1]} 10. Bh6 {[%clk 0:02:36.6]} 10... Nxe4 {[%clk 0:02:04.1]} 11. Bxe4
{[%clk 0:02:36.3]} 11... Nc6 {[%clk 0:01:59.8]} 12. Bxg6+ {[%clk 0:02:34.8]} 1-0

[Event "*** Titled Tuesday Blitz"]
[Site "Chess.com"]
[Date "2020.12.29"]
[Round "8"]
[White "tlomigtlis"]
[Black "Grammnik"]
[Result "1-0"]
[WhiteElo "2546"]
[BlackElo "2334"]
[TimeControl "180+1"]
[EndTime "11:22:50 PST"]
[Termination "tlomigtlis won by resignation"]

1. d4 {[%clk 0:03:00.9]} 1... d5 {[%clk 0:02:59.3]} 2. c4 {[%clk 0:03:01.2]}
2... c6 {[%clk 0:02:58.9]} 3. Nf3 {[%clk 0:03:00.8]} 3... Nf6 {[%clk 0:02:59]}
4. Nc3 {[%clk 0:03:01]} 4... dxc4 {[%clk 0:02:59]} 5. a4 {[%clk 0:03:00.4]} 5...
Bf5 {[%clk 0:02:58.4]} 6. Ne5 {[%clk 0:03:00.4]} 6... Nbd7 {[%clk 0:02:58]} 7.
Nxc4 {[%clk 0:03:00.1]} 7... Qc7 {[%clk 0:02:57.9]} 8. g3 {[%clk 0:03:00.2]}
8... e5 {[%clk 0:02:57.9]} 9. dxe5 {[%clk 0:03:01.1]} 9... Nxe5 {[%clk
0:02:58.7]} 10. Bf4 {[%clk 0:03:01.8]} 10... Nfd7 {[%clk 0:02:59]} 11. Bg2
{[%clk 0:03:01.7]} 11... f6 {[%clk 0:02:59.4]} 12. O-O {[%clk 0:02:59.5]} 12...
Nc5 {[%clk 0:02:59.4]} 13. e4 {[%clk 0:02:56.2]} 13... Bg6 {[%clk 0:02:58.8]}
14. b4 {[%clk 0:02:52.3]} 14... Rd8 {[%clk 0:02:56.1]} 15. Bxe5 {[%clk
0:02:38.9]} 15... fxe5 {[%clk 0:02:54.1]} 16. Qg4 {[%clk 0:02:39.3]} 16... Rd4
{[%clk 0:02:21]} 17. bxc5 {[%clk 0:02:29.9]} 1-0

[Event "*** Titled Tuesday Blitz"]
[Site "Chess.com"]
[Date "2020.12.29"]
[Round "8"]
[White "NoGalloNoParty"]
[Black "tsaruk_maks"]
[Result "0-1"]
[WhiteElo "2369"]
[BlackElo "2574"]
[TimeControl "180+1"]
[EndTime "11:22:56 PST"]
[Termination "tsaruk_maks won by resignation"]

1. d4 {[%clk 0:03:00.9]} 1... Nf6 {[%clk 0:02:59.9]} 2. Nf3 {[%clk 0:03:00.5]}
2... e6 {[%clk 0:03:00.6]} 3. c4 {[%clk 0:03:00.5]} 3... d5 {[%clk 0:03:01.5]}
4. g3 {[%clk 0:03:00.3]} 4... dxc4 {[%clk 0:03:00.5]} 5. Bg2 {[%clk 0:02:59.3]}
5... Be7 {[%clk 0:03:01.1]} 6. O-O {[%clk 0:02:58.4]} 6... O-O {[%clk
0:03:01.7]} 7. Qc2 {[%clk 0:02:57.6]} 7... a6 {[%clk 0:03:01.3]} 8. a4 {[%clk
0:02:57.1]} 8... Bd7 {[%clk 0:03:02.1]} 9. Qxc4 {[%clk 0:02:56.7]} 9... Bc6
{[%clk 0:03:03]} 10. Bf4 {[%clk 0:02:55.8]} 10... a5 {[%clk 0:02:57.2]} 11. Rd1
{[%clk 0:02:52.9]} 11... Nbd7 {[%clk 0:02:56.9]} 12. Nc3 {[%clk 0:02:49.2]}
12... Nb6 {[%clk 0:02:56.4]} 13. Qd3 {[%clk 0:02:48.3]} 13... Bxf3 {[%clk
0:02:56.3]} 14. Bxf3 {[%clk 0:02:46.6]} 14... c6 {[%clk 0:02:57.2]} 15. e4
{[%clk 0:02:33.1]} 15... Bb4 {[%clk 0:02:57.3]} 16. Bg2 {[%clk 0:02:14]} 16...
Qe7 {[%clk 0:02:50.3]} 17. b3 {[%clk 0:02:03.3]} 17... Rfd8 {[%clk 0:02:46.6]}
18. Qe2 {[%clk 0:01:51.1]} 18... Bxc3 {[%clk 0:02:45.5]} 0-1

[Event "*** Titled Tuesday Blitz"]
[Site "Chess.com"]
[Date "2020.12.29"]
[Round "8"]
[White "davigator"]
[Black "TengisChess"]
[Result "1-0"]
[WhiteElo "2296"]
[BlackElo "2397"]
[TimeControl "180+1"]
[EndTime "11:23:08 PST"]
[Termination "davigator won by resignation"]

1. e4 {[%clk 0:03:00.9]} 1... c6 {[%clk 0:02:58.9]} 2. d4 {[%clk 0:02:57.8]}
2... d5 {[%clk 0:02:59.8]} 3. e5 {[%clk 0:02:58]} 3... Bf5 {[%clk 0:02:57]} 4.
h4 {[%clk 0:02:57.9]} 4... h6 {[%clk 0:02:56.7]} 5. g4 {[%clk 0:02:56.9]} 5...
Bc8 {[%clk 0:02:55.1]} 6. c3 {[%clk 0:02:54.1]} 6... e6 {[%clk 0:02:55.1]} 7.
Nf3 {[%clk 0:02:51.5]} 7... Nd7 {[%clk 0:02:55]} 8. Bd3 {[%clk 0:02:50.7]} 8...
Ne7 {[%clk 0:02:55.9]} 9. Be3 {[%clk 0:02:47.9]} 9... c5 {[%clk 0:02:56.4]} 10.
b4 {[%clk 0:02:44.5]} 10... Nc6 {[%clk 0:02:57.3]} 11. bxc5 {[%clk 0:02:44.1]}
11... b6 {[%clk 0:02:53.8]} 12. cxb6 {[%clk 0:02:43.4]} 12... Qxb6 {[%clk
0:02:52.6]} 13. Nbd2 {[%clk 0:02:42.7]} 13... Ba6 {[%clk 0:02:47.9]} 14. c4
{[%clk 0:02:37.2]} 14... dxc4 {[%clk 0:02:46.1]} 15. Nxc4 {[%clk 0:02:34.7]}
15... Bb4+ {[%clk 0:02:42.5]} 16. Ke2 {[%clk 0:02:30.5]} 16... Bxc4 {[%clk
0:02:37.5]} 17. Bxc4 {[%clk 0:02:30]} 17... O-O {[%clk 0:02:37.3]} 18. Rb1
{[%clk 0:02:29]} 18... Qa5 {[%clk 0:02:35.4]} 19. g5 {[%clk 0:02:14.4]} 19... h5
{[%clk 0:02:22.4]} 20. g6 {[%clk 0:02:12.1]} 1-0

[Event "*** Titled Tuesday Blitz"]
[Site "Chess.com"]
[Date "2020.12.29"]
[Round "8"]
[White "ChessLover0108"]
[Black "vladgoncharov"]
[Result "1-0"]
[WhiteElo "2755"]
[BlackElo "2561"]
[TimeControl "180+1"]
[EndTime "11:23:21 PST"]
[Termination "ChessLover0108 won by resignation"]

1. d4 {[%clk 0:03:00.9]} 1... Nf6 {[%clk 0:02:45.1]} 2. c4 {[%clk 0:03:00.7]}
2... e6 {[%clk 0:02:42]} 3. Nf3 {[%clk 0:03:01.2]} 3... Bb4+ {[%clk 0:02:40.8]}
4. Bd2 {[%clk 0:03:01.2]} 4... Be7 {[%clk 0:02:37.4]} 5. Nc3 {[%clk 0:03:00.9]}
5... d5 {[%clk 0:02:35.4]} 6. Bf4 {[%clk 0:03:01.4]} 6... O-O {[%clk 0:02:33.9]}
7. e3 {[%clk 0:03:02]} 7... c5 {[%clk 0:02:19.5]} 8. dxc5 {[%clk 0:03:00.2]}
8... Bxc5 {[%clk 0:02:18.1]} 9. cxd5 {[%clk 0:02:58.8]} 9... exd5 {[%clk
0:02:18.2]} 10. Be5 {[%clk 0:02:55.2]} 10... Bb4 {[%clk 0:02:11.4]} 11. a3
{[%clk 0:02:55.1]} 11... Ba5 {[%clk 0:02:11.1]} 12. b4 {[%clk 0:02:52.3]} 12...
Bb6 {[%clk 0:02:08.7]} 13. Bxf6 {[%clk 0:02:52.5]} 13... Qxf6 {[%clk 0:02:08.7]}
14. Nxd5 {[%clk 0:02:53.4]} 14... Qg6 {[%clk 0:02:08.8]} 15. Bd3 {[%clk
0:02:49.5]} 15... Qxg2 {[%clk 0:01:46.9]} 16. Rg1 {[%clk 0:02:38.1]} 16... Qh3
{[%clk 0:01:41.5]} 17. Rg3 {[%clk 0:02:37]} 17... Qh5 {[%clk 0:01:40.4]} 18.
Nf6+ {[%clk 0:02:35.9]} 1-0

[Event "*** Titled Tuesday Blitz"]
[Site "Chess.com"]
[Date "2020.12.29"]
[Round "8"]
[White "TregubovP"]
[Black "Kosak12"]
[Result "1-0"]
[WhiteElo "2604"]
[BlackElo "2757"]
[TimeControl "180+1"]
[EndTime "11:23:42 PST"]
[Termination "TregubovP won by resignation"]

1. e4 {[%clk 0:03:00.9]} 1... c5 {[%clk 0:02:59.2]} 2. Nf3 {[%clk 0:03:00.5]}
2... Nc6 {[%clk 0:02:59.8]} 3. c3 {[%clk 0:03:00.1]} 3... d5 {[%clk 0:02:58.3]}
4. exd5 {[%clk 0:02:59.5]} 4... Qxd5 {[%clk 0:02:59.2]} 5. d4 {[%clk 0:02:59.8]}
5... Bg4 {[%clk 0:02:59.3]} 6. Be2 {[%clk 0:02:58.4]} 6... e6 {[%clk 0:02:59.4]}
7. h3 {[%clk 0:02:50.7]} 7... Bh5 {[%clk 0:02:58.8]} 8. c4 {[%clk 0:02:51]} 8...
Qd7 {[%clk 0:02:37.8]} 9. d5 {[%clk 0:02:50.4]} 9... Bxf3 {[%clk 0:02:37.8]} 10.
Bxf3 {[%clk 0:02:49.5]} 10... Nd4 {[%clk 0:02:38.3]} 11. O-O {[%clk 0:02:45.9]}
11... e5 {[%clk 0:02:36.9]} 12. Nc3 {[%clk 0:02:40.1]} 12... Bd6 {[%clk
0:02:34.9]} 13. Re1 {[%clk 0:02:33.4]} 13... Ne7 {[%clk 0:02:34.4]} 14. b4
{[%clk 0:02:26.8]} 14... cxb4 {[%clk 0:02:23.9]} 15. Ne4 {[%clk 0:02:26.5]}
15... Rc8 {[%clk 0:02:23.8]} 16. Bb2 {[%clk 0:02:14]} 16... Rxc4 {[%clk
0:02:17.9]} 17. Be2 {[%clk 0:02:08.3]} 17... Rc8 {[%clk 0:01:46.5]} 18. Bxd4
{[%clk 0:02:05.8]} 18... exd4 {[%clk 0:01:46.7]} 19. Bb5 {[%clk 0:02:05.4]} 1-0

[Event "*** Titled Tuesday Blitz"]
[Site "Chess.com"]
[Date "2020.12.29"]
[Round "8"]
[White "imdvb6307"]
[Black "KyronGriffith"]
[Result "0-1"]
[WhiteElo "2380"]
[BlackElo "2543"]
[TimeControl "180+1"]
[EndTime "11:24:18 PST"]
[Termination "KyronGriffith won by resignation"]

1. c4 {[%clk 0:03:00.9]} 1... Nf6 {[%clk 0:02:59.6]} 2. Nc3 {[%clk 0:02:59.2]}
2... g6 {[%clk 0:03:00.2]} 3. Nf3 {[%clk 0:02:56.6]} 3... Bg7 {[%clk 0:03:00.3]}
4. d4 {[%clk 0:02:57.2]} 4... d6 {[%clk 0:02:58.9]} 5. e4 {[%clk 0:02:56.9]}
5... O-O {[%clk 0:02:59]} 6. Be2 {[%clk 0:02:57.4]} 6... e5 {[%clk 0:02:59.4]}
7. O-O {[%clk 0:02:57.4]} 7... exd4 {[%clk 0:02:59.8]} 8. Nxd4 {[%clk
0:02:55.3]} 8... Re8 {[%clk 0:03:00.4]} 9. f3 {[%clk 0:02:44.9]} 9... c6 {[%clk
0:03:00.6]} 10. Nc2 {[%clk 0:02:42.2]} 10... Be6 {[%clk 0:02:42.9]} 11. Be3
{[%clk 0:02:40.6]} 11... d5 {[%clk 0:02:41.3]} 12. cxd5 {[%clk 0:02:38.7]} 12...
cxd5 {[%clk 0:02:41.6]} 13. e5 {[%clk 0:02:22.3]} 13... Nfd7 {[%clk 0:02:38.7]}
14. f4 {[%clk 0:02:21.5]} 14... Nc6 {[%clk 0:02:34.1]} 15. Nxd5 {[%clk 0:02:19]}
15... Ndxe5 {[%clk 0:02:31.7]} 16. Nc3 {[%clk 0:02:15.5]} 16... Nc4 {[%clk
0:02:24.6]} 17. Qxd8 {[%clk 0:01:56.7]} 17... Raxd8 {[%clk 0:02:23.7]} 18. Bxc4
{[%clk 0:01:56.1]} 18... Bxc4 {[%clk 0:02:24.6]} 19. Rfd1 {[%clk 0:01:39.2]}
19... Bd3 {[%clk 0:02:21]} 20. Ne1 {[%clk 0:01:34]} 20... Rxe3 {[%clk
0:02:19.4]} 21. Kf2 {[%clk 0:01:27.7]} 21... Bd4 {[%clk 0:02:16.1]} 22. Nb5
{[%clk 0:01:21.8]} 22... Re2+ {[%clk 0:02:09.3]} 23. Kf3 {[%clk 0:01:19.6]}
23... Bxb5 {[%clk 0:02:03.6]} 0-1

[Event "*** Titled Tuesday Blitz"]
[Site "Chess.com"]
[Date "2020.12.29"]
[Round "8"]
[White "m_ezat"]
[Black "Lady_Nika"]
[Result "1-0"]
[WhiteElo "2539"]
[BlackElo "2323"]
[TimeControl "180+1"]
[EndTime "11:24:59 PST"]
[Termination "m_ezat won by resignation"]

1. d4 {[%clk 0:03:00.9]} 1... d5 {[%clk 0:02:59.5]} 2. c4 {[%clk 0:03:01.3]}
2... e6 {[%clk 0:02:59.9]} 3. Nc3 {[%clk 0:02:44.4]} 3... f5 {[%clk 0:02:59.6]}
4. e3 {[%clk 0:02:43.2]} 4... Nf6 {[%clk 0:02:59.4]} 5. Qc2 {[%clk 0:02:43.1]}
5... c6 {[%clk 0:02:59.3]} 6. Bd3 {[%clk 0:02:42.9]} 6... Ne4 {[%clk 0:02:57.2]}
7. Nge2 {[%clk 0:02:42.6]} 7... Bd6 {[%clk 0:02:57]} 8. f3 {[%clk 0:02:39.7]}
8... Qh4+ {[%clk 0:02:56.4]} 9. g3 {[%clk 0:02:24.8]} 9... Nxg3 {[%clk
0:02:55.5]} 10. Nxg3 {[%clk 0:02:22.6]} 10... Bxg3+ {[%clk 0:02:55]} 11. Kf1
{[%clk 0:02:18.5]} 11... Bd6 {[%clk 0:02:50.3]} 12. Qg2 {[%clk 0:02:16.8]} 12...
Qf6 {[%clk 0:02:40.7]} 13. Bd2 {[%clk 0:02:13.9]} 13... Na6 {[%clk 0:02:38.3]}
14. a3 {[%clk 0:02:10.2]} 14... Nc7 {[%clk 0:02:37.6]} 15. Ke2 {[%clk
0:02:05.3]} 15... Bd7 {[%clk 0:02:37.3]} 16. Rag1 {[%clk 0:02:04.1]} 16... g6
{[%clk 0:02:35.6]} 17. h4 {[%clk 0:02:04.6]} 17... dxc4 {[%clk 0:02:35.5]} 18.
Bxc4 {[%clk 0:02:04.1]} 18... O-O-O {[%clk 0:02:32.4]} 19. h5 {[%clk 0:02:04.1]}
19... Rdg8 {[%clk 0:02:30.9]} 20. Kd1 {[%clk 0:01:58.4]} 20... Nd5 {[%clk
0:02:29.9]} 21. Kc2 {[%clk 0:01:57]} 21... Ne7 {[%clk 0:02:24.9]} 22. hxg6
{[%clk 0:01:49.3]} 22... hxg6 {[%clk 0:02:22.7]} 23. Rd1 {[%clk 0:01:45.8]}
23... g5 {[%clk 0:02:21]} 24. e4 {[%clk 0:01:45.8]} 24... fxe4 {[%clk 0:02:19]}
25. Nxe4 {[%clk 0:01:42.7]} 25... Qg6 {[%clk 0:02:15.2]} 26. Bd3 {[%clk
0:01:41.2]} 26... Kb8 {[%clk 0:02:00.7]} 27. Nxd6 {[%clk 0:01:40.2]} 27... Qg7
{[%clk 0:02:01]} 28. Nc4 {[%clk 0:01:33.2]} 28... Rxh1 {[%clk 0:01:46.1]} 29.
Rxh1 {[%clk 0:01:23.7]} 29... Qxd4 {[%clk 0:01:46.1]} 30. Bc3 {[%clk 0:01:23.7]}
30... Qf4 {[%clk 0:01:45.3]} 31. Be5+ {[%clk 0:01:23]} 1-0

[Event "*** Titled Tuesday Blitz"]
[Site "Chess.com"]
[Date "2020.12.29"]
[Round "8"]
[White "frenchpin"]
[Black "carloseduar100"]
[Result "1-0"]
[WhiteElo "2467"]
[BlackElo "2125"]
[TimeControl "180+1"]
[EndTime "11:25:03 PST"]
[Termination "frenchpin won by resignation"]

1. e4 {[%clk 0:03:00.9]} 1... e6 {[%clk 0:02:59.9]} 2. d4 {[%clk 0:02:57]} 2...
d5 {[%clk 0:03:00.8]} 3. Nd2 {[%clk 0:02:57.5]} 3... c5 {[%clk 0:03:00.5]} 4.
exd5 {[%clk 0:02:57.6]} 4... Qxd5 {[%clk 0:03:00.5]} 5. Ngf3 {[%clk 0:02:58]}
5... cxd4 {[%clk 0:03:00.1]} 6. Bc4 {[%clk 0:02:58.6]} 6... Qd7 {[%clk
0:02:59.6]} 7. O-O {[%clk 0:02:58.6]} 7... Nc6 {[%clk 0:03:00]} 8. Nb3 {[%clk
0:02:47]} 8... Nf6 {[%clk 0:02:48]} 9. Nbxd4 {[%clk 0:02:44.9]} 9... Nxd4 {[%clk
0:02:48]} 10. Nxd4 {[%clk 0:02:45.8]} 10... a6 {[%clk 0:02:48.1]} 11. Bg5 {[%clk
0:02:38.9]} 11... Be7 {[%clk 0:02:43.7]} 12. c3 {[%clk 0:02:33.4]} 12... Qc7
{[%clk 0:02:38.5]} 13. Qe2 {[%clk 0:02:32.7]} 13... O-O {[%clk 0:02:35]} 14.
Rfe1 {[%clk 0:02:31.4]} 14... Kh8 {[%clk 0:02:01.1]} 15. Rad1 {[%clk 0:02:28.4]}
15... Bd7 {[%clk 0:01:50]} 16. Bb3 {[%clk 0:02:07.2]} 16... Rad8 {[%clk
0:01:43.1]} 17. Bc2 {[%clk 0:02:01]} 17... Bc6 {[%clk 0:01:37.1]} 18. Rd3 {[%clk
0:01:50.1]} 18... Be4 {[%clk 0:01:18.4]} 19. Bxf6 {[%clk 0:01:48.2]} 19... Bxd3
{[%clk 0:01:13.2]} 20. Qxd3 {[%clk 0:01:48.9]} 1-0

[Event "*** Titled Tuesday Blitz"]
[Site "Chess.com"]
[Date "2020.12.29"]
[Round "8"]
[White "Matveev_Vladimir"]
[Black "Alexander_Zubov"]
[Result "0-1"]
[WhiteElo "2700"]
[BlackElo "2920"]
[TimeControl "180+1"]
[EndTime "11:25:15 PST"]
[Termination "Alexander_Zubov won by resignation"]

1. d4 {[%clk 0:03:00.9]} 1... Nf6 {[%clk 0:02:59.9]} 2. c4 {[%clk 0:03:00.4]}
2... g6 {[%clk 0:03:00.2]} 3. Nc3 {[%clk 0:02:59.8]} 3... d5 {[%clk 0:03:00.2]}
4. cxd5 {[%clk 0:03:00.6]} 4... Nxd5 {[%clk 0:03:00.2]} 5. e4 {[%clk 0:03:00.5]}
5... Nxc3 {[%clk 0:03:00.3]} 6. bxc3 {[%clk 0:03:01.4]} 6... Bg7 {[%clk
0:03:00.8]} 7. Bg5 {[%clk 0:03:02.1]} 7... c5 {[%clk 0:02:59.6]} 8. Rc1 {[%clk
0:03:02.3]} 8... O-O {[%clk 0:02:59.6]} 9. Nf3 {[%clk 0:03:01.1]} 9... Bg4
{[%clk 0:02:59.5]} 10. d5 {[%clk 0:03:01.1]} 10... Qd6 {[%clk 0:02:57.9]} 11.
Be2 {[%clk 0:03:01.2]} 11... Nd7 {[%clk 0:02:57.8]} 12. O-O {[%clk 0:02:58.5]}
12... Bxf3 {[%clk 0:02:56]} 13. Bxf3 {[%clk 0:02:57.3]} 13... c4 {[%clk
0:02:56.1]} 14. Qa4 {[%clk 0:02:39.3]} 14... Ne5 {[%clk 0:02:10.5]} 15. Be2
{[%clk 0:02:34.2]} 15... Rfc8 {[%clk 0:02:07]} 16. Rfd1 {[%clk 0:02:31.2]} 16...
a6 {[%clk 0:01:47.7]} 17. f4 {[%clk 0:02:27.5]} 17... Nd3 {[%clk 0:01:34.1]} 18.
Bxd3 {[%clk 0:02:27.3]} 18... cxd3 {[%clk 0:01:34.7]} 19. Rxd3 {[%clk
0:02:25.7]} 19... f6 {[%clk 0:01:28.6]} 20. Bxf6 {[%clk 0:01:40]} 20... exf6
{[%clk 0:01:21.6]} 21. g3 {[%clk 0:01:39.9]} 21... b5 {[%clk 0:01:18.4]} 22. Qd1
{[%clk 0:01:38.6]} 22... Rc4 {[%clk 0:01:16.4]} 23. Re3 {[%clk 0:01:35.9]} 23...
Rac8 {[%clk 0:01:00.2]} 24. Qd3 {[%clk 0:01:34.1]} 24... b4 {[%clk 0:00:58.4]}
0-1